bitfinex-derivatives/quotes_ETHF0:USTF0_20210110
["timestamp","ask_amount","ask_price","bid_price","bid_amount"]
[1610257747364,3.98786007,1309.6,1309.3,4.22029073]
[1610257747562,5.81406007,1309.6,1309.3,4.22029073]
[1610257748869,4.00959,1309.4,1309.3,4.22029073]
[1610257749068,4.00959,1309.4,1309.2,4.22081584]
[1610257749368,4.00959,1309.4,1309.1,4.22102148]
[1610257750968,4.00959,1309.2,1309.1,4.22102148]
[1610257751369,4.00959,1309.2,1309.0,4.00959]
[1610257751370,6.49389,1309.2,1309.0,8.23081428]
[1610257752270,6.49389,1309.2,1309.1,4.2211698]
[1610257754271,6.49389,1309.2,1309.0,8.23084057]
[1610257754972,6.49389,1309.2,1309.1,4.22121805]
[1610257755972,6.49389,1309.2,1309.0,8.23085303]
[1610257758275,6.49389,1309.2,1309.0,4.00959]
[1610257762579,6.49389,1309.2,1308.9,4.22147039]
[1610257762981,4.00959,1309.0,1308.9,4.22147039]
[1610257767885,4.00959,1309.0,1308.6,4.22251108]
[1610257768086,4.00959,1309.0,1308.4,4.22301]
[1610257768384,4.00959,1309.0,1308.3,4.22322015]
[1610257769085,4.00959,1308.4,1308.3,4.22322015]
[1610257769488,4.00959,1308.4,1308.0,4.00959]
[1610257770085,4.00959,1308.4,1308.3,4.22352558]
[1610257771387,1.9518,1308.7,1308.3,4.22352558]
[1610257771787,1.9518,1308.7,1308.2,4.00959]
[1610257772088,1.9518,1308.7,1308.4,4.22338961]
[1610257772989,4.00959,1308.5,1308.4,4.22338961]
[1610257773390,4.00959,1308.5,1308.3,4.22369625]
[1610257775892,4.00959,1308.5,1308.4,4.22353856]
[1610257777793,4.00959,1308.5,1308.3,4.22386622]
[1610257778994,4.00959,1308.5,1308.4,4.00959]
[1610257779193,1.9518,1308.7,1308.4,8.23329541]
[1610257779394,2.4843,1309.2,1308.4,8.23329541]
[1610257779693,31.8262,1309.6,1308.4,8.23329541]
[1610257780999,4.00959,1308.6,1308.4,8.23329541]
[1610257781196,6.08549,1308.6,1308.4,8.23329541]
[1610257782296,2.0759,1308.6,1308.4,8.23329541]
[1610257785002,4.00959,1308.5,1308.4,8.23329541]
[1610257786105,4.00959,1308.5,1308.4,4.00959]
[1610257788710,4.00959,1308.5,1308.2,4.22394403]
[1610257789109,4.00959,1308.3,1308.2,8.23353403]
[1610257789311,5.55319,1308.3,1308.2,4.00959]
[1610257789712,5.55319,1308.3,1308.2,8.23375831]
[1610257790211,5.55319,1308.3,1308.2,4.00959]
[1610257791114,5.55319,1308.3,1308.0,4.22444379]
[1610257791115,5.55319,1308.3,1308.0,8.23403379]
[1610257791920,5.55319,1308.3,1308.0,4.22444379]
[1610257792115,5.55319,1308.3,1307.9,4.22490011]
[1610257792717,5.55319,1308.3,1307.8,4.22521956]
[1610257793116,4.00959,1307.9,1307.8,4.22521956]
[1610257793321,5.80759,1307.9,1307.8,4.22521956]
[1610257794117,5.80759,1307.9,1307.7,4.22551647]
[1610257795222,5.80759,1307.9,1307.6,8.23530408]
[1610257796420,5.80759,1307.9,1307.6,4.22571408]
[1610257796922,5.80759,1307.9,1307.5,4.22611976]
[1610257797124,4.00959,1307.6,1307.5,4.22611976]
[1610257797323,5.52649,1307.6,1307.4,4.22630122]
[1610257801025,5.52649,1307.6,1307.5,4.00959]
[1610257801426,1.5169,1307.6,1307.5,4.00959]
[1610257802426,1.798,1307.9,1307.5,8.23595247]
[1610257802629,1.5436,1308.3,1307.5,8.23595247]
[1610257803028,4.00959,1308.2,1308.1,4.00959]
[1610257803227,6.20279,1308.2,1308.1,4.00959]
[1610257803428,2.1932,1308.2,1308.1,4.00959]
[1610257804729,2.1932,1308.2,1308.1,8.2340768]
[1610257805332,2.1932,1308.2,1308.1,4.00959]
[1610257808334,4.00959,1309.1,1308.1,4.00959]
[1610257808534,1.5234,1308.4,1308.1,4.00959]
[1610257809135,1.5234,1308.4,1308.3,4.00959]
[1610257813541,4.00959,1308.9,1308.3,4.00959]
[1610257814043,4.00959,1308.9,1308.5,4.22320784]
[1610257814342,4.00959,1308.9,1308.4,4.22327322]
[1610257814542,6.04469,1308.9,1308.4,4.22327322]
[1610257815242,6.04469,1308.9,1308.8,4.00959]
[1610257817045,6.04469,1308.9,1308.5,4.2231797]
[1610257817247,6.04469,1308.9,1308.5,4.00959]
[1610257817945,6.04469,1308.9,1308.4,4.22334542]
[1610257818145,6.04469,1308.9,1308.3,4.22367542]
[1610257818545,36.04469,1308.9,1308.3,4.22367542]
[1610257818745,36.04469,1308.9,1308.2,4.22404891]
[1610257819347,4.00959,1308.3,1308.2,4.00959]
[1610257819547,5.75709,1308.3,1308.2,4.00959]
[1610257822949,5.75709,1308.3,1308.0,4.22488244]
[1610257823350,4.00959,1308.1,1308.0,4.22488244]
[1610257825254,4.00959,1308.1,1307.9,8.2346757]
[1610257825453,4.00959,1308.1,1307.9,4.2250857]
[1610257825853,4.00959,1308.1,1307.7,4.22566633]
[1610257826053,34.00959,1308.1,1307.7,4.22566633]
[1610257826255,34.00959,1308.1,1306.3,3.405]
[1610257826256,34.00959,1308.1,1307.6,4.226087]
[1610257826454,34.00959,1308.1,1307.4,4.22639082]
[1610257827254,30.0,1308.1,1307.5,4.00959]
[1610257827454,30.0,1308.8,1307.5,8.23604297]
[1610257828656,76.2048,1308.8,1307.5,8.23604297]
[1610257829357,76.2048,1308.8,1307.7,4.00959]
[1610257831259,4.00959,1308.0,1307.9,4.00959]
[1610257831459,6.13409,1308.0,1307.9,4.00959]
[1610257832858,2.1245,1308.0,1307.7,4.2262261]
[1610257833259,6.13409,1308.0,1307.7,4.2262261]
[1610257833860,6.13409,1308.0,1307.6,4.22631684]
[1610257834860,6.13409,1308.0,1307.5,4.22651581]
[1610257835461,4.00959,1307.8,1307.7,4.00959]
[1610257837265,2.1245,1308.0,1307.7,4.00959]
[1610257837467,4.00959,1308.2,1307.7,4.00959]
[1610257837767,4.00959,1308.2,1307.7,8.23558927]
[1610257838172,4.00959,1308.2,1307.8,4.22596273]
[1610257839273,30.0,1308.8,1308.0,4.00959]
[1610257840575,30.0,1308.8,1307.7,4.22602963]
[1610257840873,30.0,1308.8,1307.6,4.22645919]
[1610257841273,4.00959,1307.7,1307.5,8.23623685]
[1610257841775,5.93139,1307.7,1307.5,8.23623685]
[1610257843279,5.93139,1307.7,1307.4,4.22699193]
[1610257845380,4.00959,1307.5,1307.4,4.22699193]
[1610257847584,4.00959,1307.5,1307.3,4.22702573]
[1610257849086,4.00959,1307.5,1307.4,4.22690956]
[1610257849288,4.00959,1307.5,1307.4,8.23649956]
[1610257849486,4.00959,1307.5,1307.4,4.22690956]
[1610257849988,4.00959,1307.5,1307.3,4.22711022]
[1610257859396,4.00959,1307.5,1307.3,8.23670022]
[1610257860398,4.00959,1307.5,1307.4,4.22723702]
[1610257860698,4.00959,1307.5,1307.3,8.2368101]
[1610257861800,4.00959,1307.5,1307.4,4.22710183]
[1610257861999,1.9218,1307.7,1307.4,4.22710183]
[1610257862401,47.5854,1308.1,1307.4,4.22710183]
[1610257862803,47.5854,1308.1,1307.6,4.22635482]
[1610257863102,47.5854,1308.1,1307.7,4.22624517]
[1610257863502,4.00959,1307.9,1307.8,4.00959]
[1610257863701,6.27819,1307.9,1307.8,4.00959]
[1610257864806,6.27819,1307.9,1307.8,8.23554429]
[1610257865104,6.27819,1307.9,1307.8,4.00959]
[1610257867508,6.27819,1307.9,1307.7,4.22595719]
[1610257867708,6.27819,1307.9,1307.6,4.22600186]
[1610257868310,6.27819,1307.9,1307.5,8.23604086]
[1610257868809,6.27819,1307.9,1307.6,4.22602316]
[1610257869010,2.2686,1307.9,1307.6,4.22602316]
[1610257869209,2.2686,1307.9,1307.7,4.22586404]
[1610257869409,4.00959,1308.5,1307.8,8.23506503]
[1610257869809,6.31069,1308.5,1307.9,4.22528139]
[1610257870409,6.31069,1308.5,1308.0,4.22490557]
[1610257870609,2.3011,1308.5,1308.0,4.22490557]
[1610257870809,2.3011,1308.5,1308.1,4.22476535]
[1610257871410,6.31069,1308.5,1308.4,4.00959]
[1610257872511,2.3011,1308.5,1308.4,4.00959]
[1610257873313,2.3011,1308.5,1308.1,4.22444924]
[1610257873514,2.3011,1308.5,1308.3,4.00959]
[1610257873713,2.3011,1308.5,1308.0,4.22458389]
[1610257874113,2.3011,1308.5,1307.9,4.22484162]
[1610257874714,81.1548,1309.1,1307.1,4.69426847]
[1610257874715,81.1548,1309.1,1307.8,4.22517443]
[1610257874913,2.469,1308.5,1307.8,4.22517443]
[1610257875519,2.469,1308.5,1308.1,4.00959]
[1610257876917,2.469,1308.5,1307.8,4.22517443]
[1610257877116,2.469,1308.5,1307.7,4.22552946]
[1610257877319,32.469,1308.5,1307.7,4.22552946]
[1610257877518,4.00959,1307.8,1307.7,8.23511946]
[1610257877720,6.42019,1307.8,1307.7,8.23511946]
[1610257878120,6.42019,1307.8,1307.6,4.22598867]
[1610257878526,36.42019,1307.8,1307.5,4.22634086]
[1610257878727,36.42019,1307.8,1307.3,4.22648892]
[1610257879128,36.42019,1307.8,1307.2,4.22675137]
[1610257879328,36.42019,1307.8,1307.1,4.22688429]
[1610257879527,4.00959,1307.3,1307.1,8.23647429]
[1610257879727,5.65639,1307.3,1307.2,4.22691342]
[1610257880033,5.65639,1307.3,1307.1,8.23663119]
[1610257881529,5.65639,1307.3,1307.1,4.22704119]
[1610257882533,1.6468,1307.3,1307.1,4.22704119]
[1610257882734,1.6468,1307.3,1307.2,4.22686914]
[1610257883033,1.6468,1307.3,1306.3,8.10162267]
[1610257883433,1.6468,1307.3,1307.2,4.00959]
[1610257883832,2.4106,1307.8,1307.2,4.00959]
[1610257884232,2.469,1308.5,1307.2,4.00959]
[1610257884435,30.0,1309.0,1307.6,4.22556056]
[1610257884839,5.9876,1310.0,1307.2,4.00959]
[1610257884840,30.0,1309.9,1307.8,4.2251189]
[1610257885037,30.0,1309.9,1307.9,4.2246286]
[1610257885440,4.00959,1308.7,1308.1,4.22431674]
[1610257885837,6.31209,1308.7,1308.1,4.22431674]
[1610257886238,6.31209,1308.7,1308.2,4.22395821]
[1610257886637,2.3025,1308.7,1308.2,4.22395821]
[1610257886838,2.3025,1308.7,1308.3,4.22381785]
[1610257887438,2.3025,1308.7,1308.6,4.00959]
[1610257890843,4.00959,1309.0,1308.6,4.00959]
[1610257891544,4.00959,1309.0,1308.9,4.00959]
[1610257899850,30.0,1310.0,1308.9,4.00959]
[1610257900450,43.9397,1310.2,1308.9,4.00959]
[1610257900853,43.9397,1310.2,1308.9,8.23160156]
[1610257901051,43.9397,1310.2,1309.0,4.22192065]
[1610257901352,43.9397,1310.2,1308.9,8.2315748]
[1610257901555,4.00959,1309.6,1309.5,4.00959]
[1610257901756,6.18379,1309.6,1309.5,4.00959]
[1610257902156,2.1742,1309.6,1309.5,4.00959]
[1610257906960,4.00959,1309.8,1309.5,4.00959]
[1610257907161,1.7484,1309.6,1309.5,4.00959]
[1610257911565,5.75799,1309.6,1309.5,4.00959]
[1610257915073,1.7484,1309.6,1309.5,4.00959]
[1610257915275,2.3482,1309.6,1309.5,4.00959]
[1610257920278,4.00959,1310.0,1309.5,4.00959]
[1610257921681,4.00959,1310.0,1309.9,4.00959]
[1610257922582,4.00959,1310.0,1309.1,4.22135548]
[1610257923182,4.00959,1310.0,1309.2,4.22127421]
[1610257923582,4.00959,1310.0,1309.3,4.2212316]
[1610257923783,4.00959,1310.0,1309.9,4.00959]
[1610257923983,59.9641,1311.1,1309.9,4.00959]
[1610257925686,59.9641,1311.1,1310.4,4.00959]
[1610257925887,59.9641,1311.1,1309.4,4.22090041]
[1610257926086,61.8275,1311.1,1309.4,4.22090041]
[1610257926287,61.8275,1311.1,1309.3,4.22068354]
[1610257927687,4.00959,1310.4,1310.2,4.00959]
[1610257927888,5.73229,1310.4,1310.2,4.00959]
[1610257929188,5.73229,1310.4,1309.4,4.22036197]
[1610257929789,4.00959,1310.2,1310.0,4.00959]
[1610257934589,4.00959,1310.2,1309.3,4.22047899]
[1610257934893,4.00959,1310.2,1309.2,4.22096992]
[1610257935490,4.00959,1310.2,1309.1,4.22130725]
[1610257935690,4.00959,1309.6,1309.5,4.00959]
[1610257935890,6.43909,1309.6,1309.5,4.00959]
[1610257936490,6.43909,1309.6,1309.0,4.22142961]
[1610257936691,6.43909,1309.6,1308.9,4.22193793]
[1610257936990,6.43909,1309.6,1308.8,4.22204747]
[1610257937392,6.43909,1309.6,1308.9,4.22221282]
[1610257937591,6.43909,1309.6,1308.7,4.22234437]
[1610257937791,4.00959,1309.0,1308.9,4.00959]
[1610257938091,5.54129,1309.0,1308.9,4.00959]
[1610257938492,5.54129,1309.0,1308.7,4.22234437]
[1610257938691,5.54129,1309.0,1308.6,4.22275931]
[1610257938892,5.54129,1309.0,1308.4,4.2231893]
[1610257939292,5.54129,1309.0,1308.3,4.22358292]
[1610257939492,5.54129,1309.0,1308.2,4.22394242]
[1610257939693,4.00959,1308.3,1308.2,4.22394242]
[1610257939895,6.34359,1308.3,1308.1,4.22430773]
[1610257940293,6.34359,1308.3,1308.0,8.23399872]
[1610257941794,4.00959,1308.1,1308.0,4.22440872]
[1610257942194,4.00959,1308.1,1307.9,4.22485769]
[1610257942894,4.00959,1308.1,1308.0,4.22464559]
[1610257943696,4.00959,1308.1,1308.0,8.23423559]
[1610257944398,2.334,1308.3,1308.0,8.23423559]
[1610257944801,2.334,1308.3,1308.1,4.22454889]
[1610257944999,58.4525,1309.0,1308.1,4.22454889]
[1610257945599,58.4525,1309.0,1308.0,8.23416054]
[1610257945798,4.00959,1308.1,1308.0,8.23416054]
[1610257945997,5.75179,1308.1,1308.0,4.22457054]
[1610257946198,5.75179,1308.1,1307.9,4.22480947]
[1610257946600,5.75179,1308.1,1307.8,4.22502588]
[1610257947303,5.75179,1308.1,1307.7,4.22515902]
[1610257947805,4.00959,1307.8,1307.7,4.22515902]
[1610257948002,5.73439,1307.8,1307.6,4.22538055]
[1610257948805,1.7248,1307.8,1307.6,4.22538055]
[1610257949802,5.73439,1307.8,1307.7,4.22532461]
[1610257951211,5.73439,1307.8,1307.6,4.00959]
[1610257951510,5.73439,1307.8,1307.7,4.22504441]
[1610257951911,5.73439,1307.8,1307.6,4.00959]
[1610257952411,1.7248,1307.8,1307.6,4.00959]
[1610257953112,1.7248,1307.8,1307.7,4.22515366]
[1610257953312,55.3026,1308.4,1307.7,4.22515366]
[1610257953712,4.00959,1307.8,1307.7,4.22515366]
[1610257954116,5.73509,1307.8,1307.7,4.22515366]
[1610257957519,5.73509,1307.8,1307.6,4.22533546]
[1610257958519,5.73509,1307.8,1307.5,4.22552409]
[1610257959921,4.00959,1307.6,1307.5,4.22552409]
[1610257964524,4.00959,1307.6,1306.1,10.216]
[1610257964525,4.00959,1307.6,1307.3,4.22666643]
[1610257964726,4.00959,1307.6,1307.1,4.22693307]
[1610257965127,4.00959,1307.6,1307.0,4.22715077]
[1610257965729,4.00959,1307.6,1306.9,4.22744476]
[1610257965928,4.00959,1307.0,1306.9,4.22744476]
[1610257966128,4.00959,1307.0,1306.8,4.2275074]
[1610257967032,4.00959,1307.0,1306.6,4.22797013]
[1610257968032,4.00959,1306.7,1306.5,4.22827983]
[1610257968333,6.03389,1306.7,1306.5,4.22827983]
[1610257968734,6.03389,1306.7,1306.4,4.228574]
[1610257969937,4.00959,1306.5,1306.4,4.228574]
[1610257971439,4.00959,1306.5,1306.3,4.22878223]
[1610257971838,4.00959,1306.5,1306.4,4.22877827]
[1610257972837,4.00959,1306.5,1306.3,4.2291676]
[1610257973239,4.00959,1306.5,1306.1,4.23001592]
[1610257973638,4.00959,1306.5,1306.0,4.23023694]
[1610257974040,4.00959,1306.1,1306.0,4.23023694]
[1610257974239,4.00959,1306.1,1305.9,4.23040956]
[1610257974440,5.64649,1306.1,1305.9,4.23040956]
[1610257974640,5.64649,1306.1,1306.0,4.23038084]
[1610257975242,5.64649,1306.1,1305.9,4.23038936]
[1610257975841,7.19739,1306.1,1305.9,4.23038936]
[1610257976440,5.64649,1306.1,1305.9,4.23038936]
[1610257976646,5.64649,1306.1,1305.7,4.23122459]
[1610257977041,5.64649,1306.1,1305.6,4.23142573]
[1610257977441,7.16749,1306.1,1305.6,4.23142573]
[1610257977642,5.64649,1306.1,1305.5,4.23164588]
[1610257978044,4.00959,1305.6,1305.5,4.23164588]
[1610257978243,5.82609,1305.6,1305.5,4.23164588]
[1610257978645,7.37449,1305.6,1305.5,4.23164588]
[1610257978844,5.82609,1305.6,1305.5,4.23164588]
[1610257979045,5.82609,1305.6,1305.0,4.00959]
[1610257979846,7.34529,1305.6,1305.5,4.23223274]
[1610257980547,7.34529,1305.6,1305.0,4.00959]
[1610257981147,7.34529,1305.6,1305.5,4.23239606]
[1610257981446,5.82609,1305.6,1305.5,4.23239606]
[1610257981848,5.82609,1305.6,1305.0,4.00959]
[1610257982048,4.00959,1305.2,1305.0,4.00959]
[1610257982451,5.51919,1305.2,1305.0,4.00959]
[1610257982948,4.00959,1305.2,1305.0,4.00959]
[1610257983249,4.00959,1305.2,1304.7,4.70188369]
[1610257983654,4.00959,1305.2,1304.6,4.7028883]
[1610257984049,1.8152,1305.3,1304.7,4.00959]
[1610257984249,1.8152,1305.3,1304.4,4.70364403]
[1610257984250,3.3552,1305.3,1304.4,4.70364403]
[1610257984651,1.8152,1305.3,1305.0,4.23410299]
[1610257985254,1.8152,1305.3,1304.9,4.23451896]
[1610257985654,3.3539,1305.3,1304.8,4.2348058]
[1610257985854,3.3539,1305.3,1304.0,4.70533978]
[1610257985855,1.8152,1305.3,1304.7,4.23492825]
[1610257986055,4.00959,1304.8,1304.7,4.23492825]
[1610257986457,5.97049,1304.8,1304.7,4.23492825]
[1610257986656,5.97049,1304.8,1304.6,4.23504273]
[1610257986855,7.48909,1304.8,1304.6,4.23504273]
[1610257987656,7.48909,1304.8,1304.5,4.23540018]
[1610257988059,4.00959,1304.6,1304.5,4.23540018]
[1610257988958,4.00959,1304.6,1304.0,4.00959]
[1610257989158,5.53169,1304.6,1304.0,4.00959]
[1610257989662,4.00959,1304.6,1304.0,4.00959]
[1610257989858,1.9609,1304.8,1304.0,4.00959]
[1610257990060,1.9609,1304.8,1304.7,4.00959]
[1610257990861,3.5116,1304.8,1304.7,4.00959]
[1610257992363,1.9609,1304.8,1304.7,4.00959]
[1610257992563,4.00959,1305.2,1304.7,4.00959]
[1610257992963,4.00959,1305.2,1305.1,4.23414754]
[1610257993663,4.00959,1305.2,1305.0,4.23451156]
[1610257993865,4.00959,1305.2,1304.9,4.23457956]
[1610257994064,4.00959,1305.0,1304.9,4.23457956]
[1610257994564,5.54009,1305.0,1304.9,4.23457956]
[1610257995164,4.00959,1305.0,1304.9,4.23457956]
[1610257995764,4.00959,1305.0,1304.8,4.23492152]
[1610257995964,5.73179,1305.0,1304.8,4.23492152]
[1610257996166,5.73179,1305.0,1304.6,4.23553264]
[1610257996464,5.73179,1305.0,1304.5,4.23580683]
[1610257996663,5.73179,1305.0,1304.4,4.23600324]
[1610257997267,5.73179,1305.0,1304.3,4.23608548]
[1610257997667,7.27619,1305.0,1304.3,4.23608548]
[1610257998269,4.00959,1304.4,1304.3,4.23608548]
[1610257998469,6.40029,1304.4,1304.3,4.23608548]
[1610257999270,6.40029,1304.4,1303.9,4.00959]
[1610258000171,4.00959,1304.1,1303.9,4.00959]
[1610258000871,4.00190335,1304.1,1303.9,4.00959]
[1610258002074,4.00190335,1304.1,1303.4,4.70700003]
[1610258002274,4.00190335,1304.1,1303.5,4.00959]
[1610258002674,6.11280335,1304.1,1304.0,4.23692212]
[1610258003276,6.11280335,1304.1,1303.9,4.23699383]
[1610258004078,6.11280335,1304.1,1303.8,4.23754055]
[1610258004479,6.11280335,1304.1,1303.6,4.23823145]
[1610258004879,6.11280335,1304.1,1303.5,4.23860216]
[1610258005279,6.11280335,1304.1,1303.4,4.23873715]
[1610258005483,6.11280335,1304.1,1303.5,4.23854412]
[1610258005780,6.11280335,1304.1,1303.6,4.23846046]
[1610258006080,6.11280335,1304.1,1303.5,4.23847884]
[1610258006281,5.65659,1303.6,1303.5,4.23847884]
[1610258007586,5.65659,1303.6,1303.4,4.23856336]
[1610258008789,5.65659,1303.6,1303.5,4.23856054]
[1610258009489,27.65659,1303.6,1303.5,4.23856054]
[1610258009991,27.65659,1303.6,1303.0,4.00959]
[1610258010193,4.00959,1303.3,1303.2,4.00959]
[1610258010693,23.647,1303.6,1303.2,4.00959]
[1610258011293,23.647,1303.6,1303.2,3.986976]
[1610258012296,23.647,1303.6,1303.4,4.00959]
[1610258014297,4.00959,1303.5,1303.4,4.00959]
[1610258015298,23.647,1303.6,1303.4,4.00959]
[1610258018202,4.00959,1303.5,1303.4,4.00959]
[1610258018402,23.647,1303.6,1303.4,4.00959]
[1610258019304,23.647,1303.6,1303.2,2.13]
[1610258019705,23.647,1303.6,1303.0,4.70910688]
[1610258020104,23.647,1303.6,1303.5,4.2390576]
[1610258020304,27.65659,1303.6,1303.4,4.23948349]
[1610258020706,27.65659,1303.6,1303.3,4.2395931]
[1610258021608,27.65659,1303.6,1303.2,4.23985204]
[1610258022206,4.00959,1303.3,1303.2,4.23985204]
[1610258022508,4.00959,1303.3,1303.1,4.24030377]
[1610258023210,4.00959,1303.3,1303.2,4.24002815]
[1610258024112,4.00959,1303.3,1303.1,4.24072367]
[1610258024311,6.46599,1303.3,1303.1,4.24072367]
[1610258024511,6.46599,1303.3,1302.9,4.24115563]
[1610258024913,6.46599,1303.3,1302.8,4.24130078]
[1610258025111,6.46599,1303.3,1302.7,4.24151035]
[1610258025714,6.46599,1303.3,1302.6,4.2417759]
[1610258026313,4.00959,1302.7,1302.6,4.2417759]
[1610258026513,4.00959,1302.7,1302.5,4.24181069]
[1610258026715,4.00959,1302.7,1302.6,4.24176726]
[1610258027015,4.00959,1302.7,1302.5,4.24183535]
[1610258027616,4.00959,1302.7,1302.6,4.2416514]
[1610258028218,4.00959,1302.7,1302.6,8.2512414]
[1610258028417,4.00959,1302.7,1302.6,4.00959]
[1610258028818,1.729,1302.8,1302.6,4.00959]
[1610258030218,2.4564,1303.3,1302.6,4.00959]
[1610258030419,23.647,1303.6,1302.6,4.00959]
[1610258030820,23.647,1303.6,1303.3,4.23972319]
[1610258031019,23.647,1303.6,1303.4,4.23951776]
[1610258031420,23.647,1303.6,1303.3,4.23950887]
[1610258031721,23.647,1303.6,1303.4,4.23942343]
[1610258032323,4.00959,1303.5,1303.4,4.00959]
[1610258032524,4.00959,1303.5,1303.3,4.23954081]
[1610258032724,23.647,1303.6,1303.3,4.23954081]
[1610258033327,23.647,1303.6,1303.2,4.23999539]
[1610258033728,23.647,1303.6,1303.1,4.24023628]
[1610258034127,23.647,1303.6,1303.0,4.24059335]
[1610258034327,4.00959,1303.1,1302.9,4.2410683]
[1610258034727,6.19279,1303.1,1302.7,4.2412494]
[1610258036328,4.00959,1302.8,1302.4,4.00959]
[1610258036529,5.95489,1302.8,1302.4,4.00959]
[1610258036735,5.95489,1302.8,1302.7,4.24141165]
[1610258037931,5.95489,1302.8,1302.4,4.00959]
[1610258038230,4.00959,1302.5,1302.4,4.00959]
[1610258038432,1.9453,1302.8,1302.4,4.00959]
[1610258040333,1.9453,1302.8,1302.6,4.00959]
[1610258041735,2.1832,1303.1,1302.6,4.00959]
[1610258041937,23.647,1303.6,1302.6,4.00959]
[1610258042135,23.647,1303.6,1303.0,4.24076228]
[1610258042478,4.00959,1303.2,1303.1,8.25035831]
[1610258042535,6.31299,1303.2,1303.1,8.25035831]
[1610258042736,2.3034,1303.2,1303.1,8.25035831]
[1610258045340,2.3034,1303.2,1303.1,4.00959]
[1610258047642,2.4191,1303.3,1303.1,4.00959]
[1610258051448,23.647,1303.6,1303.1,4.00959]
[1610258052250,23.647,1303.6,1303.5,4.00959]
[1610258052551,23.647,1303.6,1302.8,4.71024302]
[1610258052853,23.647,1303.6,1303.5,4.23932411]
[1610258053250,23.647,1303.6,1303.3,4.23968826]
[1610258053951,23.647,1303.6,1303.4,4.23942858]
[1610258054352,23.647,1303.6,1303.5,8.24897362]
[1610258055652,23.647,1303.6,1303.5,4.00959]
[1610258057860,23.647,1303.6,1303.5,8.24889541]
[1610258058060,23.647,1303.6,1303.5,4.00959]
[1610258061766,23.647,1303.6,1303.5,8.24891235]
[1610258062068,23.647,1303.6,1303.5,4.00959]
[1610258062467,23.647,1303.6,1303.5,8.24877614]
[1610258062766,23.647,1303.6,1303.5,4.00959]
[1610258066768,23.647,1303.6,1303.4,2.4182]
[1610258068472,23.647,1303.6,1303.5,4.00959]
[1610258077878,23.647,1303.6,1303.4,2.4182]
[1610258078079,23.647,1303.6,1303.1,1.7996]
[1610258078378,23.647,1303.6,1303.5,4.00959]
[1610258078778,23.647,1303.6,1302.9,4.70988348]
[1610258078979,23.647,1303.6,1303.5,4.23921964]
[1610258079379,23.647,1303.6,1303.4,4.23943186]
[1610258080282,23.647,1303.6,1303.3,4.23990609]
[1610258080480,4.00959,1303.4,1303.3,4.23990609]
[1610258082382,4.00959,1303.4,1303.3,8.24949609]
[1610258082683,4.00959,1303.4,1303.3,4.00959]
[1610258085188,4.00959,1303.4,1303.3,8.24953594]
[1610258085388,4.00959,1303.4,1303.3,4.00959]
[1610258086589,4.00959,1303.4,1302.6,4.71089393]
[1610258086989,4.00959,1303.4,1303.3,4.24010856]
[1610258088192,4.00959,1303.4,1303.2,4.24015684]
[1610258088592,4.00959,1303.4,1303.3,4.24021331]
[1610258089694,4.00959,1303.4,1303.2,4.2402993]
[1610258091395,4.00959,1303.4,1303.1,4.24062995]
[1610258092397,4.00959,1303.2,1303.1,4.24062995]
[1610258094698,4.00959,1303.2,1303.0,4.2407331]
[1610258095699,4.00959,1303.2,1303.1,4.24081993]
[1610258095998,4.00959,1303.2,1302.5,4.00959]
[1610258095999,4.00959,1303.2,1303.0,4.24097425]
[1610258097302,4.00959,1303.2,1302.9,4.24116496]
[1610258098404,4.00959,1303.0,1302.9,4.24116496]
[1610258099205,5.79519,1303.0,1302.9,4.24116496]
[1610258099605,5.79519,1303.0,1302.8,4.2412993]
[1610258100208,5.79519,1303.0,1302.7,4.24151161]
[1610258100408,4.00959,1302.8,1302.7,4.24151161]
[1610258101209,4.00959,1302.8,1302.6,4.2417834]
[1610258104411,4.00959,1302.8,1302.5,4.24167077]
[1610258104611,4.00959,1302.8,1301.7,4.71296753]
[1610258104612,4.00959,1302.8,1302.4,4.24186997]
[1610258105115,34.00959,1302.8,1302.4,4.24186997]
[1610258105517,34.00959,1302.8,1302.3,4.24263074]
[1610258105918,34.00959,1302.8,1302.1,4.24283209]
[1610258106518,34.00959,1302.2,1302.0,4.24381652]
[1610258106719,35.99889,1302.2,1302.0,4.24381652]
[1610258106917,35.99889,1302.2,1301.6,4.24564295]
[1610258107320,35.99889,1302.2,1301.2,4.24627001]
[1610258107520,5.99889,1302.2,1301.2,4.24627001]
[1610258107720,5.99889,1302.2,1301.0,4.24624278]
[1610258107922,5.99889,1302.2,1301.2,4.24582293]
[1610258108320,5.99889,1302.2,1301.3,4.24565699]
[1610258108520,5.99889,1302.2,1300.6,1.5415]
[1610258108521,4.00959,1301.4,1301.2,4.24577827]
[1610258108720,5.57319,1301.4,1301.2,4.24577827]
[1610258108919,5.57319,1301.4,1301.1,4.24599895]
[1610258109821,5.57319,1301.4,1301.0,4.24677687]
[1610258110222,5.57319,1301.4,1300.8,4.24685446]
[1610258110525,4.00959,1300.9,1300.8,4.24685446]
[1610258110923,63.42759,1300.9,1300.7,4.24702555]
[1610258111524,63.42759,1300.9,1300.8,4.24693188]
[1610258112123,63.42759,1300.9,1300.1,4.00959]
[1610258112524,63.42759,1300.9,1300.8,4.00959]
[1610258113626,59.418,1300.9,1300.8,4.00959]
[1610258115028,59.418,1300.9,1300.8,5.80769]
[1610258116830,59.418,1300.9,1300.8,10.52419733]
[1610258120132,59.418,1300.9,1300.8,5.80769]
[1610258120333,2.1677,1300.9,1300.8,5.80769]
[1610258120532,1.9893,1302.2,1300.8,5.80769]
[1610258120732,6.11349,1302.5,1300.8,5.80769]
[1610258121132,6.11349,1302.5,1302.3,4.24276305]
[1610258121533,6.11349,1302.5,1302.2,4.24282579]
[1610258122636,2.1039,1302.5,1302.4,4.00959]
[1610258123236,2.1039,1302.5,1302.4,8.25213732]
[1610258123637,36.0023,1304.5,1302.4,8.25213732]
[1610258124337,36.0023,1304.5,1302.5,4.24235223]